fUST/lending_fUST_20250521
["ID","MTS","AMOUNT","RATE_DAILY","PERIOD"]
[361801355,1747816234899,-450.0,0.00016438,2]
[361801356,1747816234911,-430.0,0.00016438,2]
[361801357,1747816234920,-403.23314512,0.00016438,2]
[361801358,1747816234930,-452.26846496,0.00016438,2]
[361801359,1747816234941,-402.38400032,0.00016438,2]
[361801360,1747816234951,-501.75020438,0.00016438,2]
[361801361,1747816234960,-270.72510648,0.00016438,2]
[361801362,1747816234970,-430.0,0.00016438,2]
[361801363,1747816234980,-439.48055673,0.00016438,2]
[361801364,1747816234989,-430.0,0.00016438,2]
[361801365,1747816234999,-436.50301804,0.00016438,2]
[361801366,1747816235009,-451.64696847,0.00016438,2]
[361801367,1747816235018,-262.85429377,0.00016438,2]
[361801368,1747816235028,-458.9383802,0.00016438,2]
[361801369,1747816235038,-435.87848935,0.00016438,2]
[361801370,1747816235049,-430.0,0.00016438,2]
[361801371,1747816235059,-433.28366913,0.00016438,2]
[361801372,1747816235069,-430.0,0.00016438,2]
[361801373,1747816235078,-430.0,0.00016438,2]
[361801374,1747816235089,-430.82494035,0.00016438,2]
[361801375,1747816235099,-400.0,0.00016438,2]
[361801376,1747816235109,-500.0,0.00016684,2]
[361801377,1747816235119,-500.0,0.00016711,2]
[361801378,1747816235129,-500.0,0.00016711,2]
[361801379,1747816235139,-430.0,0.00016712,2]
[361801380,1747816235149,-430.0,0.00016712,2]
[361801381,1747816235158,-430.0,0.00016712,2]
[361801382,1747816235169,-555.05808947,0.00016712,2]
[361801383,1747816235179,-430.0,0.00016712,2]
[361801384,1747816235189,-484.92,0.00016712,2]
[361801385,1747816235199,-430.0,0.00016712,2]
[361801386,1747816235209,-430.0,0.00016712,2]
[361801387,1747816235219,-430.0,0.00016712,2]
[361801388,1747816235229,-430.0,0.00016712,2]
[361801389,1747816235239,-430.0,0.00016712,2]
[361801390,1747816235250,-430.0,0.00016712,2]
[361801391,1747816235260,-430.0,0.00016712,2]
[361801392,1747816235271,-430.0,0.00016712,2]
[361801393,1747816235282,-430.0,0.00016712,2]
[361801394,1747816235292,-437.71972517,0.00016712,2]
[361801395,1747816235302,-430.0,0.00016712,2]
[361801396,1747816235311,-430.0,0.00016712,2]
[361801397,1747816235322,-430.0,0.00016712,2]
[361801398,1747816235332,-430.0,0.00016712,2]
[361801399,1747816235342,-430.0,0.00016712,2]
[361801400,1747816235352,-430.0,0.00016712,2]
[361801401,1747816235362,-430.0,0.00016712,2]
[361801402,1747816235371,-430.0,0.00016712,2]
[361801403,1747816235382,-430.0,0.00016712,2]
[361801404,1747816235391,-430.0,0.00016712,2]
[361801405,1747816235402,-430.0,0.00016712,2]
[361801406,1747816235411,-430.0,0.00016712,2]
[361801407,1747816235421,-430.0,0.00016712,2]
[361801408,1747816235431,-430.0,0.00016712,2]
[361801409,1747816235442,-432.49,0.00016712,2]
[361801410,1747816235451,-185.66,0.00016712,2]
[361801411,1747816235461,-430.0,0.00016712,2]
[361801412,1747816235471,-430.0,0.00016712,2]
[361801413,1747816235481,-430.0,0.00016712,2]
[361801414,1747816235490,-430.0,0.00016712,2]
[361801415,1747816235500,-442.28,0.00016712,2]
[361801416,1747816235510,-430.0,0.00016712,2]
[361801417,1747816235520,-539.19363376,0.00016712,2]
[361801418,1747816235529,-430.0,0.00016712,2]
[361801419,1747816235539,-430.0,0.00016712,2]
[361801420,1747816235549,-470.57319868,0.00016712,2]
[361801421,1747816235559,-430.0,0.00016712,2]
[361801422,1747816235569,-430.0,0.00016712,2]
[361801423,1747816235580,-470.44926071,0.00016712,2]
[361801424,1747816235590,-430.0,0.00016712,2]
[361801425,1747816235601,-430.0,0.00016712,2]
[361801426,1747816235610,-430.0,0.00016712,2]
[361801427,1747816235620,-292.59,0.00016712,2]
[361801428,1747816235630,-430.0,0.00016712,2]
[361801429,1747816235640,-430.0,0.00016712,2]
[361801430,1747816235650,-299.14759134,0.00016712,2]
[361801431,1747816235659,-430.0,0.00016712,2]
[361801432,1747816235669,-430.0,0.00016712,2]
[361801433,1747816235678,-430.0,0.00016712,2]
[361801434,1747816235687,-430.0,0.00016712,2]
[361801435,1747816235697,-430.0,0.00016712,2]
[361801436,1747816235706,-430.0,0.00016712,2]
[361801437,1747816235716,-430.0,0.00016712,2]
[361801438,1747816235726,-430.0,0.00016712,2]
[361801439,1747816235736,-430.0,0.00016712,2]
[361801440,1747816235746,-436.79144787,0.00016712,2]
[361801441,1747816235756,-196.65,0.00016712,2]
[361801442,1747816235766,-430.0,0.00016712,2]
[361801443,1747816235775,-430.0,0.00016712,2]
[361801444,1747816235785,-484.25,0.00016712,2]
[361801445,1747816235795,-430.0,0.00016712,2]
[361801446,1747816235805,-430.0,0.00016712,2]
[361801447,1747816235817,-430.0,0.00016712,2]
[361801448,1747816235827,-470.0,0.00016712,2]
[361801449,1747816235837,-465.37,0.00016712,2]
[361801450,1747816235849,-430.0,0.00016712,2]
[361801451,1747816235859,-430.0,0.00016712,2]
[361801452,1747816235869,-575.05,0.00016712,2]
[361801453,1747816235879,-153.43,0.00016712,2]
[361801454,1747816235890,-430.0,0.00016712,2]
[361801455,1747816235900,-430.0,0.00016712,2]
[361801456,1747816235911,-430.0,0.00016712,2]
[361801457,1747816235921,-500.0,0.00016727,2]
[361801458,1747816235932,-501.17473004,0.00016731,2]
[361801459,1747816235942,-501.30169397,0.00016731,2]
[361801460,1747816235952,-500.0,0.00016742,2]
[361801461,1747816235962,-502.02358038,0.00016742,2]
[361801462,1747816235972,-500.0,0.00016742,2]
[361801463,1747816235983,-500.0,0.00016742,2]
[361801464,1747816235992,-514.1977277,0.00016785,2]
[361801465,1747816236003,-509.58928238,0.00016785,2]
[361801466,1747816236013,-503.62682689,0.00016785,2]
[361801467,1747816236023,-500.0,0.00016785,2]
[361801468,1747816236033,-500.0,0.00016785,2]
[361801469,1747816236043,-500.0,0.00016785,2]
[361801470,1747816236054,-501.01105347,0.00016785,2]
[361801471,1747816236064,-503.63586101,0.00016785,2]
[361801472,1747816236074,-500.0,0.00016794,2]
[361801473,1747816236084,-500.0,0.00016866,2]
[361801474,1747816236094,-500.0,0.00016866,2]
[361801475,1747816236104,-500.0,0.00016908,2]
[361801476,1747816236113,-501.38712862,0.00016925,2]
[361801477,1747816236123,-500.0,0.00016948,2]
[361801478,1747816236133,-339.96216161,0.00016986,2]
[361801479,1747816236144,-424.05,0.00016986,2]
[361801480,1747816236154,-298.27303667,0.00016986,2]
[361801481,1747816236164,-430.0,0.00016986,2]
[361801482,1747816236174,-430.0,0.00016986,2]
[361801483,1747816236184,-430.0,0.00016986,2]
[361801484,1747816236195,-211.25,0.00016986,2]
[361801485,1747816236205,-430.0,0.00016986,2]
[361801486,1747816236215,-430.0,0.00016986,2]
[361801487,1747816236225,-463.22,0.00016986,2]
[361801488,1747816236234,-496.69376616,0.00016986,2]
[361801489,1747816236245,-430.0,0.00016986,2]
[361801490,1747816236254,-430.0,0.00016986,2]
[361801491,1747816236264,-430.0,0.00016986,2]
[361801492,1747816236274,-430.0,0.00016986,2]
[361801493,1747816236284,-430.0,0.00016986,2]
[361801494,1747816236295,-218.47,0.00016986,2]
[361801495,1747816236305,-430.0,0.00016986,2]
[361801496,1747816236315,-430.0,0.00016986,2]
[361801497,1747816236325,-499.28,0.00016986,2]
[361801498,1747816236334,-430.0,0.00016986,2]
[361801499,1747816236345,-430.0,0.00016986,2]
[361801500,1747816236355,-430.0,0.00016986,2]
[361801501,1747816236365,-430.0,0.00016986,2]
[361801502,1747816236377,-430.0,0.00016986,2]
[361801503,1747816236387,-430.0,0.00016986,2]
[361801504,1747816236397,-430.0,0.00016986,2]
[361801505,1747816236406,-506.15,0.00016986,2]
[361801506,1747816236416,-430.0,0.00016986,2]
[361801507,1747816236426,-430.0,0.00016986,2]
[361801508,1747816236436,-430.0,0.00016986,2]
[361801509,1747816236446,-430.0,0.00016986,2]
[361801510,1747816236455,-430.0,0.00016986,2]
[361801511,1747816236465,-254.65,0.00016986,2]
[361801512,1747816236475,-430.0,0.00016986,2]
[361801513,1747816236485,-430.0,0.00016986,2]
[361801514,1747816236494,-430.0,0.00016986,2]
[361801515,1747816236504,-451.09,0.00016986,2]
[361801516,1747816236514,-430.0,0.00016986,2]
[361801517,1747816236524,-430.0,0.00016986,2]
[361801518,1747816236535,-492.69,0.00016986,2]
[361801519,1747816236545,-430.0,0.00016986,2]
[361801520,1747816236555,-430.0,0.00016986,2]
[361801521,1747816236565,-719.62862895,0.00017182,2]
[361801522,1747816236709,-500.0,0.00017258,2]
[361801523,1747816236720,-500.0,0.00017258,2]
[361801524,1747816236730,-430.0,0.0001726,2]
[361801525,1747816236740,-430.0,0.0001726,2]
[361801526,1747816236750,-430.0,0.0001726,2]
[361801527,1747816236760,-571.13,0.0001726,2]
[361801528,1747816236769,-485.35,0.0001726,2]
[361801529,1747816236779,-430.0,0.0001726,2]
[361801530,1747816236790,-430.0,0.0001726,2]
[361801531,1747816236800,-261.0,0.0001726,2]
[361801532,1747816236809,-430.0,0.0001726,2]
[361801533,1747816236819,-430.0,0.0001726,2]
[361801534,1747816236830,-430.0,0.0001726,2]
[361801535,1747816236839,-430.0,0.0001726,2]
[361801536,1747816236850,-430.0,0.0001726,2]
[361801537,1747816236862,-430.0,0.0001726,2]
[361801538,1747816236871,-430.0,0.0001726,2]
[361801539,1747816236881,-257.14,0.0001726,2]
[361801540,1747816236890,-493.14,0.0001726,2]
[361801541,1747816236901,-430.0,0.0001726,2]
[361801542,1747816236911,-430.0,0.0001726,2]
[361801543,1747816236921,-396.4,0.0001726,2]
[361801544,1747816236932,-277.5,0.0001726,2]
[361801545,1747816236942,-430.0,0.0001726,2]
[361801546,1747816236952,-430.0,0.0001726,2]
[361801547,1747816236962,-432.1396659,0.0001726,2]
[361801548,1747816236971,-430.0,0.0001726,2]
[361801549,1747816236981,-430.0,0.0001726,2]
[361801550,1747816236991,-206.01087729,0.00017344,2]
[361801551,1747816237001,-161106.384854,0.0001739,2]
[361801552,1747816237011,-150.99287177,0.00017456,2]
[361801553,1747816237020,-346.66237562,0.00017496,2]
[361801554,1747816237031,-430.0,0.00017534,2]
[361801555,1747816237041,-548.51,0.00017534,2]
[361801556,1747816237051,-430.0,0.00017534,2]
[361801557,1747816237061,-509.99,0.00017534,2]
[361801558,1747816237072,-430.0,0.00017534,2]
[361801559,1747816237082,-430.0,0.00017534,2]
[361801560,1747816237092,-430.0,0.00017534,2]
[361801561,1747816237103,-430.0,0.00017534,2]
[361801562,1747816237113,-430.0,0.00017534,2]
[361801563,1747816237123,-430.0,0.00017534,2]
[361801564,1747816237133,-430.0,0.00017534,2]
[361801565,1747816237143,-430.0,0.00017534,2]
[361801566,1747816237152,-328.55,0.00017534,2]
[361801567,1747816237162,-430.0,0.00017534,2]
[361801568,1747816237172,-430.0,0.00017534,2]
[361801569,1747816237182,-430.0,0.00017534,2]
[361801570,1747816237192,-239.74,0.00017534,2]
[361801571,1747816237202,-430.0,0.00017534,2]
[361801572,1747816237211,-532.78837717,0.00017807,2]
[361801573,1747816237221,-500.0,0.00017807,2]
[361801574,1747816237231,-210.09,0.00017808,2]
[361801575,1747816237241,-430.0,0.00017808,2]
[361801576,1747816237251,-430.0,0.00017808,2]
[361801577,1747816237261,-430.0,0.00017808,2]
[361801578,1747816237270,-430.0,0.00017808,2]
[361801579,1747816237280,-430.0,0.00017808,2]
[361801580,1747816237289,-430.0,0.00017808,2]
[361801581,1747816237299,-430.0,0.00017808,2]
[361801582,1747816237309,-430.0,0.00017808,2]
[361801583,1747816237318,-572.38,0.00017808,2]
[361801584,1747816237328,-430.0,0.00017808,2]
[361801585,1747816237337,-430.0,0.00017808,2]
[361801586,1747816237346,-430.0,0.00017808,2]
[361801587,1747816237356,-309.11,0.00017808,2]
[361801588,1747816237366,-587.0,0.00017962,2]
[361801589,1747816237376,-1200.0,0.0001808,2]
[361801590,1747816237386,-430.0,0.00018082,2]
[361801591,1747816237395,-458.63,0.00018082,2]
[361801592,1747816237405,-430.0,0.00018082,2]
[361801593,1747816237415,-430.0,0.00018082,2]
[361801594,1747816237424,-430.0,0.00018082,2]
[361801595,1747816237434,-430.0,0.00018082,2]
[361801596,1747816237444,-504.89,0.00018082,2]
[361801597,1747816237453,-430.0,0.00018082,2]
[361801598,1747816237463,-309.44,0.00018082,2]
[361801599,1747816237472,-430.0,0.00018082,2]
[361801600,1747816237482,-430.0,0.00018082,2]
[361801601,1747816237491,-500.0,0.00018233,2]
[361801602,1747816237501,-160.0,0.00018279,2]
[361801603,1747816237510,-894.64583333,0.00018279,2]
[361801604,1747816237520,-422.71322487,0.00018279,2]
[361801605,1747816237530,-12643.00196899,0.00018279,2]
[361801606,1747816237540,-430.0,0.00018356,2]
[361801607,1747816237550,-537.12999999,0.00018356,2]
[361801608,1747816237559,-430.0,0.00018356,2]
[361801609,1747816237568,-430.0,0.00018356,2]
[361801610,1747816237577,-430.0,0.00018356,2]
[361801611,1747816237587,-430.0,0.00018356,2]
[361801612,1747816237597,-430.0,0.00018356,2]
[361801613,1747816237607,-430.0,0.00018356,2]
[361801614,1747816237617,-206.01087729,0.00018567,2]
[361801615,1747816237626,-430.0,0.0001863,2]
[361801616,1747816237636,-430.0,0.0001863,2]
[361801617,1747816237646,-430.0,0.0001863,2]
[361801618,1747816237656,-153.85,0.0001863,2]
[361801619,1747816237666,-430.0,0.0001863,2]
[361801620,1747816237675,-430.0,0.0001863,2]
[361801621,1747816237684,-200.75,0.0001863,2]
[361801622,1747816237694,-430.0,0.00018904,2]
[361801623,1747816237704,-430.0,0.00018904,2]
[361801625,1747816237713,-430.0,0.00018904,2]
[361801627,1747816237723,-430.0,0.00018904,2]
[361801629,1747816237732,-430.0,0.00018904,2]
[361801631,1747816237742,-1515.45113884,0.00019178,2]
[361801633,1747816237753,-430.0,0.00019178,2]
[361801635,1747816237762,-430.0,0.00019178,2]
[361801636,1747816237772,-430.0,0.00019178,2]
[361801638,1747816237781,-430.0,0.00019178,2]
[361801640,1747816237791,-420.31,0.00019178,2]
[361801642,1747816237800,-719.62862895,0.00019422,2]
[361801644,1747816237809,-430.0,0.00019452,2]
[361801645,1747816237819,-430.0,0.00019452,2]
[361801647,1747816237829,-270.0,0.00019452,2]
[361801649,1747816237838,-430.0,0.00019452,2]
[361801651,1747816237848,-823.0,0.00019659,2]
[361801653,1747816237861,-209.1,0.00019726,2]
[361801655,1747816237871,-430.0,0.00019726,2]
[361801657,1747816237880,-430.0,0.00019726,2]
[361801659,1747816237889,-206.01087729,0.00019789,2]
[361801661,1747816237901,-152.78411752,0.0002,2]
[361801663,1747816237910,-430.0,0.0002,2]
[361801665,1747816237919,-188.78982608,0.00020175,2]
[361801667,1747816237930,-319.600666,0.00020187,2]
[361801669,1747816237939,-430.0,0.00020273,2]
[361801670,1747816237950,-5000.0,0.0002054,2]
[361801672,1747816237959,-160.22,0.00020547,2]
[361801674,1747816237969,-404.0,0.00020817,2]
[361801676,1747816237979,-315.2534588,0.000209,2]
[361801678,1747816237989,-276.409,0.00020913,2]
[361801680,1747816237998,-206.01087729,0.00021011,4]
[361801682,1747816238007,-500.0,0.00021179,2]
[361801685,1747816238018,-5000.0,0.00021423,2]
[361801687,1747816238028,-5000.0,0.00021423,2]
[361801689,1747816238037,-2197.67055484,0.00021423,2]
[361801707,1747816238142,-2802.32944516,0.00021423,2]
[361801709,1747816238152,-5000.0,0.00021423,2]
[361801711,1747816238161,-5000.0,0.00021423,2]
[361801713,1747816238171,-5000.0,0.00021423,2]
[361801715,1747816238181,-1152.0,0.00021516,2]
[361801717,1747816238191,-3181.0,0.00021599,3]
[361801718,1747816238200,-719.62862895,0.00021661,2]
[361801720,1747816238211,-500.0,0.00021917,2]
[361801722,1747816238220,-200.0,0.00021917,2]
[361801724,1747816238229,-859.58090084,0.00021917,2]
[361801726,1747816238239,-500.0,0.00021918,2]
[361801728,1747816238249,-500.0,0.00021918,2]
[361801730,1747816238258,-500.0,0.00021918,2]
[361801732,1747816238268,-298.61352472,0.00021918,2]
[361801733,1747816238277,-500.0,0.00021918,2]
[361801735,1747816238287,-500.0,0.00021918,2]
[361801737,1747816238297,-5000.0,0.00021971,2]
[361801739,1747816238306,-200.0,0.00022191,30]
[361801741,1747816238315,-206.01087729,0.00022233,6]
[361801743,1747816238325,-500.0,0.00022275,2]
[361801745,1747816238336,-4000.0,0.00022328,4]
[361801747,1747816238344,-200.0,0.00022465,30]
[361801749,1747816238354,-5000.0,0.00022519,2]
[361801751,1747816238363,-200.0,0.00022739,30]
[361801753,1747816238372,-600.0,0.0002285,2]
[361801755,1747816238382,-167.415214,0.0002295,2]
[361801757,1747816238392,-500.0,0.00022999,2]
[361801759,1747816238401,-1884.99,0.00023,2]
[361801761,1747816238410,-198.0,0.00023,7]
[361801763,1747816238421,-500.0,0.00023,30]
[361801765,1747816238430,-500.0,0.00023,30]
[361801766,1747816238439,-500.0,0.00023,30]
[361801768,1747816238449,-500.0,0.00023,30]
[361801770,1747816238458,-500.0,0.00023,30]
[361801772,1747816238467,-500.0,0.00023,30]
[361801774,1747816238476,-500.0,0.00023,30]
[361801776,1747816238486,-500.0,0.00023,30]
[361801778,1747816238495,-500.0,0.00023,30]
[361801780,1747816238504,-500.0,0.00023,30]
[361801782,1747816238513,-500.0,0.00023,30]
[361801784,1747816238522,-500.0,0.00023,30]
[361801786,1747816238531,-500.0,0.00023,30]
[361801787,1747816238541,-500.0,0.00023,30]
[361801789,1747816238550,-500.0,0.00023,30]
[361801791,1747816238559,-500.0,0.00023,30]
[361801793,1747816238570,-500.0,0.00023,30]
[361801795,1747816238579,-800.0,0.00023,30]
[361801797,1747816238589,-500.0,0.00023,30]
[361801799,1747816238599,-500.0,0.00023,8]
[361801801,1747816238608,-5000.0,0.00023,2]
[361801803,1747816238617,-200.0,0.00023013,30]
[361801805,1747816238627,-367.6727672,0.00023096,2]
[361801807,1747816238636,-363.5769685,0.00023096,2]
[361801809,1747816238645,-363.5769684,0.00023096,2]
[361801810,1747816238654,-363.5769684,0.00023096,2]
[361801811,1747816238664,-363.5769684,0.00023096,2]
[361801812,1747816238673,-363.5769684,0.00023096,2]
[361801813,1747816238687,-200.0,0.00023287,30]
[361801814,1747816238697,-255.5776793,0.0002337,2]
[361801816,1747816238706,-817.3000112,0.0002337,2]
[361801817,1747816238716,-250.968229,0.0002337,2]
[361801818,1747816238725,-308.0552047,0.0002337,2]
[361801819,1747816238736,-158.1465944,0.0002337,2]
[361801821,1747816238745,-569.9163794,0.0002337,2]
[361801823,1747816238755,-153.0,0.0002337,2]
[361801824,1747816238764,-569.9163794,0.0002337,2]
[361801826,1747816238774,-158.1465944,0.0002337,2]
[361801828,1747816238783,-569.9163794,0.0002337,2]
[361801830,1747816238792,-158.1465944,0.0002337,2]
[361801832,1747816238801,-153.0,0.0002337,2]
[361801834,1747816238810,-500.0,0.00023371,2]
[361801836,1747816238821,-1200.0,0.00023398,2]
[361801838,1747816238831,-206.01087729,0.00023456,9]
[361801840,1747816238841,-2206.999,0.00023518,2]
[361801841,1747816238856,-500.115,0.00023518,2]
[361801843,1747816238867,-521.468975,0.0002352,2]
[361801846,1747816238877,-200.0,0.00023561,30]
[361801847,1747816238886,-582.5,0.00023583,15]
[361801849,1747816238897,-578.97551153,0.0002369,2]
[361801851,1747816238906,-151.0,0.000238,7]
[361801853,1747816238915,-200.0,0.00023835,30]
[361801855,1747816238926,-719.62862895,0.000239,2]
[361801857,1747816238936,-1800.0,0.00023946,2]
[361801859,1747816238946,-500.0,0.00023999,2]
[361801860,1747816238955,-500.0,0.00023999,2]
[361801861,1747816238964,-500.0,0.00023999,2]
[361801862,1747816238974,-500.0,0.00023999,2]
[361801863,1747816238984,-500.0,0.00023999,2]
[361801864,1747816238993,-500.0,0.00023999,2]
[361801865,1747816239002,-500.0,0.00023999,2]
[361801866,1747816239012,-638.11715836,0.00023999,2]
[361801867,1747816239021,-63158.57446911,0.00024,2]
[361801868,1747816239031,-10000.0,0.00024,3]
[361801869,1747816239041,-73612.27893226,0.00024,21]
[361801870,1747816239051,-595.0,0.00024,2]
[361801871,1747816239060,-572.0,0.00024,2]
[361801872,1747816239071,-12003.97779225,0.00024,30]
[361801873,1747816239081,-500.0,0.00024,2]
[361801874,1747816239091,-204.0,0.00024,120]
[361801875,1747816239101,-1680.06222491,0.00024,2]
[361801876,1747816239111,-4440.82869532,0.00024,4]
[361801877,1747816239121,-178.94448325,0.00024,2]
[361801878,1747816239131,-1776.6,0.00024,2]
[361801879,1747816239140,-2000.0,0.00024,2]
[361801880,1747816239150,-314.5140147,0.00024,30]
[361801881,1747816239159,-363.5769684,0.00024055,2]
[361801882,1747816239169,-363.5769684,0.00024055,2]
[361801883,1747816239178,-363.5769684,0.00024055,2]
[361801884,1747816239188,-151.0,0.000241,7]
[361801885,1747816239198,-200.0,0.00024109,30]
[361801886,1747816239207,-430.0,0.00024109,2]
[361801887,1747816239216,-430.0,0.00024109,2]
[361801888,1747816239226,-430.0,0.00024109,2]
[361801889,1747816239236,-430.0,0.00024109,2]
[361801890,1747816239245,-430.0,0.00024109,2]
[361801891,1747816239255,-430.0,0.00024109,2]
[361801892,1747816239264,-430.0,0.00024109,2]
[361801893,1747816239274,-430.0,0.00024109,2]
[361801894,1747816239284,-430.0,0.00024109,2]
[361801895,1747816239294,-430.0,0.00024109,2]
[361801896,1747816239303,-430.0,0.00024109,2]
[361801897,1747816239313,-430.0,0.00024109,2]
[361801898,1747816239324,-430.0,0.00024109,2]
[361801899,1747816239334,-430.0,0.00024109,2]
[361801900,1747816239344,-430.0,0.00024109,2]
[361801901,1747816239354,-430.0,0.00024109,2]
[361801902,1747816239365,-430.0,0.00024109,2]
[361801903,1747816239376,-430.0,0.00024109,2]
[361801904,1747816239386,-430.0,0.00024109,2]
[361801905,1747816239395,-262.08849612,0.00024109,2]
[361801906,1747816239406,-4545.65124801,0.00024122,2]
[361801907,1747816239416,-164.0,0.00024164,7]
[361801908,1747816239425,-158.1465944,0.00024192,2]
[361801909,1747816239435,-569.9163794,0.00024192,2]
[361801910,1747816239445,-291.6053758,0.00024192,2]
[361801911,1747816239455,-153.0,0.00024192,2]
[361801912,1747816239466,-200.0,0.00024203,120]
[361801913,1747816239475,-2040.18,0.0002422,2]
[361801914,1747816239485,-200.0,0.00024231,7]
[361801915,1747816239495,-63974.88427063,0.00024357,8]
[361801918,1747816239539,-583.61999993,0.00024357,8]
[361801920,1747816239551,-655.28,0.00024357,8]
[361801923,1747816239566,-5103.91277721,0.00024357,8]
[361801925,1747816239579,-3092.10371,0.00024357,8]
[361801927,1747816239590,-1124.24250417,0.00024357,8]
[361801930,1747816239603,-9736.4,0.00024357,8]
[361801932,1747816239615,-13041.0,0.00024357,8]
[361801954,1747816239767,-3926.58191976,0.00024357,8]
[361801981,1747816240246,-210.16897253,0.000219,2]
[361801982,1747816240257,-251.22079544,0.00024357,8]
[361801983,1747816240268,-701.46346679,0.00024357,8]
[361801984,1747816240280,-603.519,0.00024357,8]
[361801985,1747816240292,-2073.16201026,0.00024357,8]
[361802051,1747816243138,-174.96793918,0.0002422,2]
[361802052,1747816243148,-174.96793918,0.0002422,2]
[361802053,1747816243158,-423.89412164,0.00024357,8]
[361802054,1747816243170,-2437.38566591,0.00024357,8]
[361802055,1747816243182,-164892.22975826,0.00024357,8]
[361802056,1747816243192,-30327.51,0.00024357,8]
[361802057,1747816243203,-142400.94,0.00024357,8]
[361802058,1747816243212,-200.0,0.00024383,120]
[361802059,1747816243222,-200.0,0.00024383,30]
[361802060,1747816243232,-5000.0,0.00024434,2]
[361802061,1747816243241,-5000.0,0.00024434,2]
[361802064,1747816243250,-5000.0,0.00024434,2]
[361802067,1747816243260,-5000.0,0.00024434,2]
[361802070,1747816243269,-500.0,0.00024467,2]
[361802072,1747816243279,-2400.0,0.00024494,2]
[361802074,1747816243287,-151.0,0.000245,5]
[361802076,1747816243296,-290.2,0.00024573,15]
[361802079,1747816243306,-200.0,0.000246,2]
[361802082,1747816243315,-236.64348707,0.000246,2]
[361802084,1747816243324,-3308.56,0.000246,2]
[361802086,1747816243334,-8385.15828721,0.000246,2]
[361802088,1747816243343,-5944.4896269,0.0002465,2]
[361802090,1747816243352,-430.0,0.00024657,2]
[361802092,1747816243361,-430.0,0.00024657,2]
[361802094,1747816243373,-430.0,0.00024657,2]
[361802096,1747816243384,-430.0,0.00024657,2]
[361802098,1747816243393,-430.0,0.00024657,2]
[361802100,1747816243403,-430.0,0.00024657,2]
[361802102,1747816243412,-430.0,0.00024657,2]
[361802104,1747816243421,-430.0,0.00024657,2]
[361802106,1747816243430,-430.0,0.00024657,2]
[361802107,1747816243439,-344.80725714,0.00024657,2]
[361802109,1747816243448,-791.6,0.00024657,2]
[361802111,1747816243457,-200.0,0.00024657,2]
[361802113,1747816243467,-207.78131803,0.00024657,2]
[361802115,1747816243476,-219.66028604,0.00024657,30]
[361802117,1747816243486,-1000.0,0.00024658,2]
[361802118,1747816243495,-1000.0,0.00024658,2]
[361802119,1747816243505,-1000.0,0.00024658,2]
[361802120,1747816243514,-999.0,0.00024658,2]
[361802121,1747816243524,-1000.0,0.00024658,2]
[361802122,1747816243533,-1000.0,0.00024658,2]
[361802123,1747816243542,-200.0,0.00024658,2]
[361802124,1747816243552,-2795.4671433,0.00024658,2]